{"text_format":"1","workbook":"xlsx","n_sheets":1,"sheets":["Sheet1"],"not_rendered":{"charts":0,"images":0,"macros":1,"external_links":0,"defined_names":0,"comments":0,"pivot_tables":0},"unopened":[],"bounds":{"document_bytes":16777216,"sheet_cells":100000,"rows_first":2000,"rows_last":500,"rows_between":2000,"halvings":0,"cell_chars":16384,"cell_head_chars":4096},"cells_cut":0,"cells_raw":0,"read":"whole","date_system":"1900"}

{"sheet":"Sheet1","index":0,"n_rows":21,"n_cols":9,"rows_kept":21,"cut":false,"hidden":false,"merged":[]}
["IZNOS",null,"Provera",null,null,null,"IZNOS",null,"Provera"]
[500,null,{"$f":"CheckCellType(A2)","v":"Broj"},null,null,null,500,null,{"$f":"CheckCellType(G2)","v":"Broj"}]
[580,null,"Broj",null,null,null,580,null,"Broj"]
["2025-10-01",null,"Datum",null,null,null,45931,null,"Broj"]
[15.65,null,"Broj",null,null,null,15.65,null,"Broj"]
[500,null,"Broj",null,null,null,500,null,"Broj"]
[500,null,"Broj",null,null,null,500,null,"Broj"]
[null,null,"Prazno",null,null,null,null,null,"Prazno"]
["2025-10-01",null,"Datum",null,null,null,45931,null,"Broj"]
[500,null,"Broj",null,null,null,500,null,"Broj"]
["Beograd",null,"Tekst",null,null,null,"Beograd",null,"Tekst"]
[500,null,"Broj",null,null,null,500,null,"Broj"]
[500,null,"Broj",null,null,null,500,null,"Broj"]
[500,null,"Broj",null,null,null,500,null,"Broj"]
[10000000,null,"Broj",null,null,null,10000000,null,"Broj"]
[500,null,"Broj",null,null,null,500,null,"Broj"]
["2025-01-01",null,"Datum",null,null,null,45658,null,"Broj"]
["2025-01-01",null,"Datum",null,null,null,45658,null,"Broj"]
[500,null,"Broj",null,null,null,500,null,"Broj"]
[2.5,null,"Broj",null,null,null,2.5,null,"Broj"]
["General format",null,null,null,null,null,"Number format"]